bitfinex/quotes_SOLUSD_20250728
["timestamp","ask_amount","ask_price","bid_price","bid_amount"]
[1753679811411,0.03,193.53,193.52,153.02]
[1753679811610,4.84458959,193.53,193.52,153.02]
[1753679811838,0.03,193.53,193.52,153.69]
[1753679813636,4.84458959,193.53,193.52,153.02]
[1753679814028,0.03,193.53,193.52,153.69]
[1753679814814,4.84458959,193.53,193.52,153.69]
[1753679815215,0.03,193.53,193.52,153.69]
[1753679818512,0.03,193.53,193.52,114.97]
[1753679818833,0.03,193.53,193.52,154.01]
[1753679820620,0.03,193.53,193.52,164.27633728]
[1753679820820,4.81458959,193.57,193.53,88.27]
[1753679821018,4.81458959,193.58,193.54,39.06]
[1753679821218,5.8252955,193.6,193.55,39.06]
[1753679821523,5.16500948,193.62,193.55,39.75]
[1753679821716,5.82500948,193.62,193.56,0.69]
[1753679821922,4.81458959,193.59,193.57,39.12]
[1753679822116,4.81458959,193.58,193.57,127.39]
[1753679822344,4.81458959,193.58,193.57,128.08]
[1753679823239,5.16506571,193.61,193.57,128.08]
[1753679823439,5.16480131,193.62,193.58,0.69]
[1753679823673,4.81458959,193.59,193.57,88.27]
[1753679823849,5.47458959,193.58,193.57,88.27]
[1753679824024,4.81458959,193.58,193.57,88.27]
[1753679824219,0.66,193.61,193.57,127.35]
[1753679824545,4.81458959,193.58,193.57,127.35]
[1753679824730,4.81458959,193.58,193.57,128.04]
[1753679824927,4.81458959,193.58,193.57,127.35]
[1753679825620,5.47458959,193.58,193.57,88.27]
[1753679826230,4.81458959,193.58,193.57,88.27]
[1753679826543,0.03,193.59,193.57,88.96]
[1753679826720,0.03,193.59,193.58,39.75]
[1753679827339,0.03,193.59,193.58,1.20658229]
[1753679827545,0.03,193.59,193.58,128.53658229]
[1753679827746,0.03,193.59,193.58,127.33]
[1753679827951,0.03,193.59,193.58,128.02]
[1753679828748,0.03,193.59,193.58,133.18582291]
[1753679829049,0.03,193.59,193.58,128.02]
[1753679829440,0.03,193.59,193.58,138.0004125]
[1753679829643,0.03,193.59,193.58,155.06941961]
[1753679829950,0.03,193.59,193.58,163.02879017]
[1753679830648,0.03,193.59,193.58,158.21420058]
[1753679830853,0.03,193.59,193.58,163.02879017]
[1753679832023,0.03,193.59,193.58,165.55969259]
[1753679832240,0.03,193.63,193.62,26.0]
[1753679832437,0.03,193.63,193.62,158.8353883]
[1753679832642,0.03,193.63,193.62,159.00891273]
[1753679833150,0.03,193.63,193.62,154.19432314]
[1753679833554,0.03,193.63,193.62,159.00891273]
[1753679833927,0.03,193.63,193.62,114.52432314]
[1753679834134,4.84458959,193.63,193.62,114.24]
[1753679834336,5.50458959,193.63,193.62,88.24]
[1753679834529,5.50458959,193.63,193.62,127.12]
[1753679834735,0.69,193.63,193.62,127.12]
[1753679835046,5.50458959,193.63,193.62,127.12]
[1753679835256,4.84458959,193.63,193.62,127.12]
[1753679836051,0.03,193.63,193.62,127.12]
[1753679836238,4.84458959,193.63,193.62,127.12]
[1753679837060,0.03,193.63,193.62,127.81]
[1753679837553,0.03,193.63,193.62,60.47927356]
[1753679837765,0.03,193.63,193.62,61.80376281]
[1753679837933,0.03,193.63,193.62,67.13482797]
[1753679839739,0.03,193.63,193.62,73.51829853]
[1753679840562,0.03,193.63,193.62,7.58994613]
[1753679840858,0.03,193.63,193.62,38.78]
[1753679841058,5.50458959,193.63,193.62,38.78]
[1753679841354,4.84458959,193.63,193.62,38.78]
[1753679841863,5.50458959,193.63,193.62,38.78]
[1753679842068,5.50458959,193.63,193.58,0.28432314]
[1753679842272,4.81458959,193.61,193.59,38.76]
[1753679842561,4.84458959,193.63,193.61,26.0]
[1753679842737,4.84458959,193.63,193.61,64.76]
[1753679842939,0.03,193.63,193.61,64.76]
[1753679843139,4.84458959,193.63,193.61,64.76]
[1753679843840,4.84458959,193.63,193.61,65.45]
[1753679844240,0.03,193.63,193.61,64.76]
[1753679844540,0.03,193.63,193.61,70.61499927]
[1753679845065,0.03,193.63,193.61,64.76]
[1753679845266,0.03,193.63,193.62,0.7]
[1753679845674,0.03,193.63,193.62,1.21647557]
[1753679846372,0.03,193.63,193.61,64.76]
[1753679846680,0.03,193.63,193.61,69.92495202]
[1753679846840,4.84458959,193.63,193.61,64.76]
[1753679847044,4.81458959,193.62,193.61,64.76]
[1753679847240,5.47458959,193.62,193.6,38.72]
[1753679847479,5.47458959,193.61,193.59,38.72]
[1753679847650,0.03,193.63,193.59,38.72]
[1753679847851,4.81458959,193.61,193.59,38.7]
[1753679848262,5.47458959,193.6,193.55,88.24]
[1753679848565,0.66,193.59,193.56,38.7]
[1753679848773,4.81458959,193.57,193.56,38.7]
[1753679848959,0.66,193.6,193.56,38.7]
[1753679849144,4.81458959,193.57,193.56,38.7]
[1753679849964,4.81458959,193.58,193.56,38.7]
[1753679850293,5.82505948,193.61,193.56,38.7]
[1753679850475,4.81458959,193.58,193.56,38.7]
[1753679850880,4.81458959,193.59,193.56,39.4]
[1753679851564,0.03,193.63,193.59,26.0]
[1753679851785,0.03,193.63,193.62,26.0]
[1753679852087,0.03,193.63,193.62,65.17647557]
[1753679852457,0.03,193.63,193.62,65.87647557]
[1753679852999,0.03,193.63,193.62,65.17647557]
[1753679853376,0.03,193.63,193.62,65.87647557]
[1753679853737,0.03,193.63,193.62,71.04123127]
[1753679853874,0.03,193.63,193.62,78.72634103]
[1753679854972,0.03,193.63,193.62,71.04123127]
[1753679855267,0.03,193.63,193.62,159.28123127]
[1753679855486,0.03,193.63,193.62,158.7647557]
[1753679857088,0.03,193.63,193.62,166.44986546]
[1753679857518,0.03,193.63,193.62,166.7341886]
[1753679857668,0.03,193.63,193.62,183.51887257]
[1753679860300,0.03,193.63,193.62,175.83376281]
[1753679860596,0.03,193.63,193.62,183.51887257]
[1753679861166,0.03,193.67,193.66,26.0]
[1753679861388,0.03,193.67,193.66,160.97147865]
[1753679861695,0.03,193.67,193.66,161.15510976]
[1753679861895,0.03,193.67,193.66,153.47]
[1753679862093,0.03,193.67,193.66,166.31879869]
[1753679862284,0.03,193.67,193.66,158.63368893]
[1753679862489,0.03,193.67,193.66,166.31879869]
[1753679862891,0.03,193.67,193.66,158.63368893]
[1753679863091,0.03,193.67,193.66,166.31879869]
[1753679863397,0.03,193.67,193.66,166.60312183]
[1753679865212,0.03,193.67,193.66,183.3878058]
[1753679866712,0.03,193.67,193.66,144.8278058]
[1753679867010,0.03,193.67,193.66,183.2478058]
[1753679868117,0.03,193.67,193.66,175.56269604]
[1753679868321,0.03,193.67,193.66,183.2478058]
[1753679868823,0.03,193.67,193.66,175.56269604]
[1753679869033,0.03,193.67,193.66,183.2478058]
[1753679869397,0.03,193.67,193.66,114.49432314]
[1753679869601,0.03,193.67,193.66,158.01801207]
[1753679870024,0.03,193.67,193.66,152.85432314]
[1753679870405,0.03,193.67,193.66,158.01801207]
[1753679870600,0.03,193.67,193.66,152.57]
[1753679871536,0.03,193.67,193.66,157.73368893]
[1753679872828,0.1,193.7,193.69,26.28432314]
[1753679873024,0.1,193.7,193.69,64.58432314]
[1753679873507,0.1,193.7,193.69,69.74721229]
[1753679875211,0.1,193.7,193.69,87.21189626]
[1753679876024,0.1,193.7,193.69,175.39189626]
[1753679876217,0.1,193.7,193.69,152.4]
[1753679876817,0.1,193.7,193.69,157.56288915]
[1753679877542,0.1,193.7,193.69,175.31189626]
[1753679877839,0.1,193.7,193.69,157.84721229]
[1753679878212,0.1,193.7,193.69,158.52721229]
[1753679878434,0.1,193.7,193.69,157.84721229]
[1753679878831,0.1,193.7,193.69,180.1119046]
[1753679880546,1e-08,193.7,193.69,110.6816703]
[1753679880720,1e-08,193.7,193.69,111.19795921]
[1753679881147,1e-08,193.7,193.69,95.55175573]
[1753679881353,1e-08,193.7,193.69,100.35176407]
[1753679881535,1e-08,193.7,193.69,62.23176407]
[1753679881738,1e-08,193.7,193.69,100.33176407]
[1753679883848,1e-08,193.7,193.69,105.13177241]
[1753679885122,1e-08,193.7,193.69,100.33176407]
[1753679885543,1e-08,193.7,193.69,100.37176407]
[1753679887464,1e-08,193.7,193.69,99.67176407]
[1753679887678,1e-08,193.7,193.69,98.05166407]
[1753679887826,4.80000834,193.78,193.72,119.26433147]
[1753679888129,0.69,193.75,193.73,42.92000834]
[1753679888329,4.80000834,193.78,193.73,43.43619065]
[1753679888547,0.69,193.77,193.73,43.43619065]
[1753679888851,0.69,193.76,193.73,43.43619065]
[1753679889154,0.69,193.76,193.73,48.59779178]
[1753679889349,0.69,193.76,193.73,43.79778344]
[1753679889526,0.69,193.76,193.73,48.59779178]
[1753679889946,0.69,193.77,193.74,4.80000834]
[1753679890249,0.69,193.76,193.75,38.1]
[1753679891766,5.49000834,193.76,193.75,38.1]
[1753679891970,5.49000834,193.76,193.69,0.06]
[1753679891971,10.65103228,193.76,193.69,0.06]
[1753679892261,0.03,193.7,193.69,38.14]
[1753679892564,0.72,193.7,193.69,43.30288915]
[1753679892735,0.03,193.7,193.69,43.30288915]
[1753679893137,0.72,193.7,193.69,38.14]
[1753679893958,0.72,193.7,193.69,43.30288915]
[1753679894337,0.03,193.7,193.69,43.30288915]
[1753679894536,0.03,193.7,193.69,49.06722063]
[1753679894967,0.03,193.7,193.69,44.26721229]
[1753679895270,0.03,193.7,193.69,49.06722063]
[1753679895863,0.03,193.7,193.69,65.8519046]
[1753679897563,0.03,193.7,193.69,65.1719046]
[1753679898759,0.03,193.7,193.69,65.8519046]
[1753679899571,0.72,193.74,193.7,114.14999999]
[1753679899743,0.69,193.73,193.71,38.02]
[1753679899943,0.03,193.74,193.71,38.02]
[1753679900139,0.72,193.74,193.71,38.02]
[1753679900661,0.72,193.74,193.72,5.16208961]
[1753679900859,0.72,193.74,193.73,38.0]
[1753679901669,0.03,193.74,193.73,38.0]
[1753679902666,0.03,193.74,193.73,49.1580138]
[1753679902861,0.03,193.74,193.73,137.30801379]
[1753679903071,0.03,193.74,193.73,162.79183148]
[1753679903370,0.03,193.74,193.73,162.11183148]
[1753679903546,0.03,193.74,193.73,157.31182314]
[1753679904472,0.72,193.74,193.73,157.31182314]
[1753679904648,5.52000834,193.74,193.72,37.98]
[1753679904846,4.80000834,193.73,193.69,0.06]
[1753679905048,8.4157,193.73,193.69,0.06]
[1753679905351,7.7557,193.73,193.65,0.06]
[1753679905545,4.80000834,193.66,193.65,0.06]
[1753679906173,5.46000834,193.66,193.65,0.06]
[1753679907190,10.62369727,193.66,193.65,0.06]
[1753679907365,5.46000834,193.66,193.65,0.06]
[1753679908163,10.62369727,193.66,193.65,0.06]
[1753679908365,12.13279727,193.66,193.65,0.06]
[1753679908676,18.44359727,193.66,193.65,0.06]
[1753679914191,13.64358893,193.66,193.65,0.06]
[1753679914388,35.22828124,193.66,193.65,0.06]
[1753679916081,18.44359727,193.66,193.65,0.06]
[1753679916397,13.27990834,193.66,193.65,0.06]
[1753679916689,12.61990834,193.66,193.65,0.06]
[1753679916987,4.80000834,193.66,193.65,0.06]
[1753679917463,4.80000834,193.68,193.65,0.78]
[1753679917660,4.80000834,193.69,193.66,5.16368893]
[1753679917864,4.83000834,193.7,193.67,0.72]
[1753679918083,4.80000834,193.68,193.65,5.94390588]
[1753679918491,4.80000834,193.68,193.66,0.72]
[1753679918964,4.80000834,193.69,193.67,0.72]
[1753679919166,4.80000834,193.69,193.68,0.72]
[1753679919473,4.80000834,193.69,193.66,0.72]
[1753679919693,4.80000834,193.68,193.67,0.72]
[1753679920179,0.03,193.7,193.67,26.72]
[1753679920383,0.03,193.7,193.68,0.72]
[1753679920695,4.83000834,193.7,193.68,26.72]
[1753679920891,4.83000834,193.7,193.68,26.0]
[1753679921092,4.83000834,193.7,193.69,0.72]
[1753679921412,0.03,193.7,193.69,0.72]
[1753679922086,0.03,193.7,193.67,31.88339071]
[1753679922315,0.03,193.7,193.67,31.16339071]
[1753679922498,4.83000834,193.7,193.68,0.72]
[1753679923085,0.03,193.7,193.68,5.88314754]
[1753679923287,4.83000834,193.7,193.68,94.03314753]
[1753679924508,0.03,193.7,193.68,5.88314754]
[1753679924684,0.03,193.7,193.69,0.72]
[1753679925413,0.03,193.7,193.68,5.16314754]
[1753679925632,0.03,193.7,193.68,5.88314754]
[1753679925919,0.03,193.7,193.68,5.16314754]
[1753679926102,0.03,193.7,193.69,0.72]
[1753679927588,0.03,193.7,193.69,5.88288915]
[1753679929622,0.03,193.7,193.69,10.68289749]
[1753679930334,0.03,193.7,193.69,5.88288915]
[1753679932108,0.03,193.7,193.69,94.03288914]
[1753679932925,0.03,193.7,193.69,93.31288914]
[1753679933423,0.03,193.7,193.69,94.03288914]
[1753679934134,0.03,193.7,193.69,131.89288914]
[1753679935826,5.52000834,193.7,193.69,126.00999999]
[1753679936029,5.52000834,193.7,193.69,126.06999999]
[1753679936204,5.52000834,193.7,193.69,88.20999999]
[1753679936624,0.72,193.7,193.69,88.20999999]
[1753679936818,4.83000834,193.7,193.69,88.20999999]
[1753679937022,0.03,193.7,193.69,88.20999999]
[1753679937243,4.83000834,193.7,193.69,88.20999999]
[1753679937658,0.03,193.7,193.69,88.20999999]
[1753679938017,4.83000834,193.7,193.69,88.20999999]
[1753679939228,0.03,193.7,193.69,88.20999999]
[1753679939529,4.83000834,193.7,193.69,88.20999999]
[1753679939830,0.03,193.7,193.69,88.20999999]
[1753679940044,5.52000834,193.7,193.69,0.06]
[1753679941237,0.03,193.7,193.69,0.06]
[1753679941637,4.83000834,193.7,193.69,0.06]
[1753679941842,0.03,193.7,193.69,0.06]
[1753679942036,4.83000834,193.7,193.69,0.06]
[1753679943521,0.03,193.7,193.69,0.06]
[1753679943729,4.83000834,193.7,193.69,0.06]
[1753679944491,0.03,193.7,193.69,0.06]
[1753679944655,4.83000834,193.7,193.69,0.06]
[1753679944856,4.83000834,193.7,193.69,0.77]
[1753679946086,0.03,193.7,193.69,0.77]
[1753679946254,0.03,193.7,193.69,38.57]
[1753679946452,0.03,193.7,193.69,43.37000834]
[1753679946758,0.03,193.7,193.69,38.57]
[1753679946977,0.03,193.7,193.69,43.73288915]
[1753679947778,0.03,193.7,193.69,136.68289748]
[1753679947990,0.03,193.7,193.69,157.88288914]
[1753679948292,0.03,193.7,193.69,162.68289748]
[1753679948589,0.03,193.74,193.72,26.0]
[1753679948897,0.03,193.74,193.73,47.76183149]
[1753679949098,0.03,193.78,193.76,30.80000834]
[1753679949268,0.03,193.78,193.77,37.8]
[1753679949581,0.03,193.78,193.77,38.51]
[1753679950359,0.03,193.78,193.77,43.67075759]
[1753679950878,0.03,193.78,193.77,44.18683334]
[1753679951171,0.03,193.78,193.77,48.98684168]
[1753679951372,0.03,193.78,193.77,38.51]
[1753679951584,4.83000834,193.78,193.77,37.8]
[1753679951778,5.52000834,193.78,193.77,37.8]
[1753679952760,5.52000834,193.78,193.76,37.8]
[1753679952976,4.80000834,193.77,193.76,37.8]
[1753679955089,0.03,193.78,193.76,37.8]
[1753679955384,4.80000834,193.77,193.76,37.8]
[1753679955589,0.72,193.78,193.76,37.8]
[1753679955771,4.80000834,193.77,193.76,37.8]
[1753679955973,5.49000834,193.77,193.73,88.14999999]
[1753679956170,4.80000834,193.74,193.72,37.8]
[1753679956480,0.28432314,193.72,193.69,0.06]
[1753679956681,9.60001668,193.7,193.69,0.06]
[1753679956883,10.29001668,193.7,193.69,0.06]
[1753679957068,15.45263929,193.7,193.69,0.06]
[1753679957572,10.65263095,193.7,193.69,0.06]
[1753679957977,9.96263095,193.7,193.69,0.06]
[1753679958184,17.47468397,193.75,193.69,0.06]
[1753679958369,0.28432314,193.74,193.69,0.06]
[1753679958562,4.80000834,193.7,193.69,0.06]
[1753679958762,0.97432314,193.74,193.69,0.06]
[1753679958989,4.80000834,193.71,193.69,0.77]
[1753679959185,9.96239123,193.71,193.69,0.06]
[1753679959582,5.16182315,193.73,193.69,0.77]
[1753679959789,4.80000834,193.71,193.69,0.77]
[1753679960500,4.80000834,193.72,193.69,0.77]
[1753679961005,4.80000834,193.71,193.69,0.77]
[1753679961209,4.80000834,193.71,193.69,0.06]
[1753679961381,5.49000834,193.7,193.69,0.06]
[1753679961580,10.29001668,193.7,193.69,0.06]
[1753679962274,27.35902379,193.7,193.69,0.06]
[1753679963474,32.5216464,193.7,193.69,0.06]
[1753679963703,32.5216464,193.7,193.65,0.06]
[1753679963704,17.06900711,193.69,193.65,0.06]
[1753679963892,5.08433148,193.66,193.65,0.06]
[1753679964504,5.77433148,193.66,193.65,0.06]
[1753679965614,10.93802041,193.66,193.65,0.06]
[1753679969301,10.24802041,193.66,193.65,0.06]
[1753679970191,4.80000834,193.66,193.65,0.06]
[1753679970412,9.96369727,193.66,193.65,0.06]
[1753679971013,4.80000834,193.66,193.65,0.77]
[1753679971210,9.96369727,193.66,193.65,0.06]
[1753679971616,4.80000834,193.66,193.65,0.06]
[1753679971794,9.96369727,193.66,193.65,0.06]
[1753679974513,5.16235609,193.71,193.65,0.77]
[1753679974702,4.80000834,193.68,193.65,0.77]
[1753679975600,5.16270298,193.7,193.65,0.77]
[1753679975797,4.80000834,193.71,193.65,6.08640389]
[1753679975998,4.80000834,193.72,193.66,5.51000834]
[1753679976204,5.16129032,193.75,193.67,43.82635057]
[1753679976499,4.80000834,193.74,193.68,5.51000834]
[1753679976711,4.80000834,193.74,193.69,0.71]
[1753679977113,4.80000834,193.73,193.69,0.71]
[1753679977313,4.80000834,193.73,193.7,0.71]
[1753679977521,9.96199237,193.73,193.7,0.71]
[1753679977821,9.96199237,193.73,193.67,43.47969342]
[1753679978124,9.96199237,193.73,193.71,0.71]
[1753679978428,4.80000834,193.72,193.69,0.71]
[1753679978608,4.80000834,193.71,193.69,0.71]
[1753679979196,4.80000834,193.71,193.68,37.8]
[1753679979407,4.80000834,193.71,193.69,0.71]
[1753679979608,9.96227536,193.72,193.69,0.71]
[1753679980121,9.96227536,193.72,193.7,0.71]
[1753679980300,4.80000834,193.72,193.7,0.71]
[1753679980502,5.19188721,193.73,193.7,0.71]
[1753679980725,4.80000834,193.72,193.71,0.71]
[1753679981222,4.80000834,193.72,193.69,0.71]
[1753679981398,4.80000834,193.72,193.7,0.71]
[1753679982109,5.19188721,193.73,193.7,0.71]
[1753679982110,9.99189555,193.73,193.7,0.71]
[1753679982320,5.19188721,193.73,193.7,0.71]
[1753679982620,9.99189555,193.73,193.71,0.71]
[1753679982803,5.19188721,193.73,193.71,0.71]
[1753679983206,0.03,193.73,193.72,0.71]
[1753679983905,0.03,193.73,193.72,38.49]
[1753679986722,0.03,193.73,193.72,37.78]
[1753679988007,4.83000834,193.73,193.7,88.14999999]
[1753679988323,4.80000834,193.72,193.71,37.78]
[1753679989424,5.46000834,193.72,193.7,88.14999999]
[1753679989605,4.80000834,193.71,193.69,37.78]
[1753679989805,5.16262261,193.7,193.69,37.78]
[1753679990124,9.96263095,193.7,193.69,37.78]
[1753679992025,10.24695409,193.7,193.65,26.06]
[1753679992227,4.80000834,193.67,193.65,0.06]
[1753679992405,5.44694575,193.7,193.66,37.78]
[1753679992609,4.80000834,193.67,193.66,38.49]
[1753679992817,5.16262261,193.7,193.66,38.49]
[1753679993015,9.96263095,193.7,193.66,37.78]
[1753679993211,4.80000834,193.67,193.66,37.78]
[1753679994018,5.16323982,193.68,193.66,38.49]
[1753679994328,9.96324816,193.68,193.66,38.49]
[1753679994524,9.96324816,193.68,193.67,0.71]
[1753679994736,5.1629093,193.69,193.67,0.71]
[1753679995034,9.96291764,193.69,193.68,0.68]
[1753679995328,5.1629093,193.69,193.68,0.68]
[1753679996238,4.80000834,193.71,193.68,0.68]
[1753679996440,4.80000834,193.71,193.69,37.76]
[1753679996613,4.80000834,193.71,193.69,38.44]
[1753679997242,9.96247367,193.71,193.69,37.76]
[1753679997426,4.80000834,193.7,193.69,37.76]
[1753679997816,5.46000834,193.7,193.69,37.76]
[1753679998257,5.46000834,193.7,193.66,37.76]
[1753679998543,4.80000834,193.67,193.66,37.76]
[1753679998715,4.80000834,193.67,193.66,125.90999999]
[1753679999353,5.16330841,193.68,193.66,125.90999999]
[1753679999511,9.96331675,193.68,193.66,126.58999999]
[1753680001540,4.80000834,193.67,193.66,125.90999999]
[1753680001843,5.16330841,193.68,193.65,0.06]
[1753680002026,0.28432314,193.72,193.66,38.5]
[1753680002027,4.80000834,193.7,193.66,38.5]
[1753680002221,4.80000834,193.68,193.66,37.82]
[1753680002438,4.80000834,193.67,193.66,37.82]
[1753680002744,5.46000834,193.67,193.66,0.06]
[1753680002947,0.94432314,193.67,193.66,0.06]
[1753680003135,5.74433148,193.67,193.66,0.06]
[1753680003837,10.90775379,193.67,193.66,0.06]
[1753680004250,10.90775379,193.67,193.62,0.06]
[1753680004251,17.06900711,193.66,193.62,0.06]
[1753680004436,5.08433148,193.63,193.62,0.06]
[1753680004634,5.08433148,193.63,193.61,1e-08]
[1753680004635,17.06900711,193.62,193.61,1e-08]
[1753680004840,17.06900711,193.6,193.58,0.06]
[1753680005157,4.80000834,193.59,193.58,0.06]
[1753680005322,5.46000834,193.59,193.58,0.06]
[1753680006060,10.62556441,193.59,193.58,0.06]
[1753680006227,9.96556441,193.59,193.58,0.06]
[1753680006543,10.62556441,193.59,193.58,0.06]
[1753680006947,4.80000834,193.58,193.57,0.06]
[1753680007459,4.80000834,193.58,193.52,0.06]
[1753680007460,17.06900711,193.57,193.52,0.06]
[1753680007767,17.72900711,193.57,193.52,0.06]
[1753680007928,9.96716588,193.53,193.52,0.06]
[1753680008129,5.16715754,193.53,193.52,0.06]
[1753680008332,9.96716588,193.53,193.52,0.06]
[1753680008525,0.28432314,193.57,193.52,0.74]
[1753680008725,4.80000834,193.54,193.53,0.68]
[1753680009043,4.80000834,193.55,193.53,0.68]
[1753680009232,4.80000834,193.55,193.54,0.68]
[1753680009953,0.14216157,193.61,193.54,0.68]
[1753680010138,4.80000834,193.58,193.54,0.68]
[1753680010523,4.80000834,193.56,193.54,0.68]
[1753680010725,7.69424415,193.56,193.53,26.0]
[1753680010928,7.69424415,193.55,193.53,26.0]
[1753680011561,7.69424415,193.55,193.53,26.68]
[1753680012560,5.16582291,193.58,193.54,0.68]
[1753680012766,7.69424415,193.56,193.55,0.68]
[1753680014263,5.16582291,193.58,193.55,0.68]
[1753680014264,7.69424415,193.57,193.55,0.68]
[1753680014457,7.69424415,193.57,193.56,0.68]
[1753680014659,5.16582291,193.58,193.56,0.68]
[1753680014866,7.69424415,193.57,193.56,0.68]
[1753680015336,5.16582291,193.58,193.56,0.68]
[1753680015541,12.86006706,193.58,193.56,0.68]
[1753680015866,5.16582291,193.58,193.56,0.68]
[1753680016040,12.86006706,193.58,193.56,0.68]
[1753680016840,7.69424415,193.57,193.56,0.68]
[1753680017256,5.16582291,193.58,193.56,0.68]
[1753680017568,7.69424415,193.57,193.56,0.68]
[1753680018857,12.86034543,193.57,193.54,0.68]
[1753680019065,5.16610128,193.57,193.54,0.68]
[1753680019471,12.86034543,193.57,193.54,0.68]
[1753680020670,7.69424415,193.57,193.55,0.68]
[1753680021467,7.69424415,193.57,193.53,114.14999999]
[1753680021670,12.86033492,193.57,193.53,114.82999999]
[1753680021849,12.86033492,193.57,193.54,0.68]
[1753680022046,7.69424415,193.56,193.54,0.68]
[1753680022566,5.76033015,193.79,193.54,0.68]
[1753680022567,12.91075252,193.64,193.56,26.0]
[1753680022795,7.69424415,193.61,193.58,26.0]
[1753680023073,7.69424415,193.61,193.58,26.68]
[1753680023374,7.69424415,193.6,193.58,26.68]
[1753680023576,12.85956549,193.6,193.58,26.68]
[1753680023776,7.69424415,193.59,193.58,26.0]
[1753680024489,7.69424415,193.61,193.58,26.68]
[1753680024860,7.69424415,193.61,193.59,0.72]
[1753680025179,7.69424415,193.62,193.6,0.72]
[1753680025786,7.69424415,193.62,193.61,0.72]
[1753680026483,5.16427833,193.64,193.61,0.72]
[1753680026678,7.69424415,193.63,193.61,0.72]
[1753680027096,12.85852248,193.64,193.61,0.72]
[1753680027464,7.69424415,193.64,193.61,0.72]
[1753680027969,5.19396564,193.65,193.61,0.72]
[1753680028166,0.03,193.65,193.62,0.72]
[1753680028381,7.72424415,193.65,193.63,0.72]
[1753680028585,7.72424415,193.65,193.62,0.72]
[1753680029293,12.88822171,193.65,193.62,0.72]
[1753680029679,5.19397756,193.65,193.62,0.72]
[1753680029870,12.88822171,193.65,193.62,0.72]
[1753680030805,4.83429397,193.65,193.62,0.72]
[1753680032495,0.03,193.65,193.62,0.72]
[1753680032697,4.83429397,193.65,193.62,88.86999999]
[1753680033116,0.03,193.65,193.63,0.72]
[1753680033420,0.03,193.65,193.63,125.90999999]
[1753680033595,0.03,193.65,193.64,0.72]
[1753680034697,0.03,193.65,193.64,6.04071619]
[1753680034914,0.03,193.65,193.64,32.04071619]
[1753680035109,0.03,193.65,193.64,31.52429397]
[1753680035513,0.03,193.65,193.64,32.04071619]
[1753680035810,0.03,193.65,193.64,26.72]
[1753680036312,0.03,193.65,193.64,32.04071619]
[1753680036493,0.03,193.65,193.64,125.35493844]
[1753680036815,0.03,193.65,193.64,124.83851622]
[1753680038020,0.03,193.65,193.64,119.67429396]
[1753680038224,0.03,193.65,193.64,124.83851622]
[1753680039428,0.03,193.65,193.64,98.83851622]
[1753680039721,0.03,193.65,193.64,99.35493844]
[1753680040320,0.03,193.65,193.64,127.14642221]
[1753680040534,0.03,193.65,193.64,136.59851622]
[1753680042912,0.03,193.65,193.64,136.57851622]
[1753680044614,0.03,193.69,193.68,4.80429397]
[1753680044933,0.03,193.69,193.68,43.06060954]
[1753680045117,0.03,193.69,193.68,131.90060953]
[1753680045313,0.03,193.69,193.68,131.38429396]
[1753680046219,0.03,193.69,193.68,93.64429396]
[1753680046417,0.03,193.69,193.68,131.90060953]
[1753680046621,0.03,193.69,193.68,131.38429396]